[Event "Orlicka sachovnice 2023"]
[Site "Usti nad Orlici, Czech Republic"]
[Date "2023.05.06"]
[Round "3.1"]
[White "Malek, Daniel"]
[Black "Stary, Vojtech"]
[Result "0-1"]
[TimeControl "12 min + 3 s"]
[WhiteElo "1207"]
[BlackElo "1604"]

1. e4 {[%emt 00:00:04]} c5 {[%clk 00:12:06]} 2. Nf3 {[%clk 00:12:03]} {[%emt
00:00:02]} e6 {[%clk 00:12:07]} {[%emt 00:00:02]} 3. d4 {[%clk 00:11:37]}
{[%emt 00:00:28]} cxd4 {[%clk 00:12:09]} {[%emt 00:00:03]} 4. Qxd4 {[%clk
00:11:24]} {[%emt 00:00:15]} Nc6 {[%clk 00:12:08]} {[%emt 00:00:04]} 5. Qd1
{[%emt 00:00:44]} Qc7 {[%clk 00:12:00]} {[%emt 00:00:11]} 6. Bc4 {[%clk
00:10:09]} {[%emt 00:00:36]} a6 {[%clk 00:12:00]} {[%emt 00:00:04]} 7. Nc3
{[%clk 00:09:54]} {[%emt 00:00:17]} Nf6 {[%clk 00:11:54]} {[%emt 00:00:10]} 8.
Be3 {[%clk 00:09:24]} {[%emt 00:00:32]} Bb4 {[%clk 00:11:48]} {[%emt 00:00:10]}
9. Qd3 {[%clk 00:09:06]} {[%emt 00:00:20]} Na5 {[%clk 00:10:35]} {[%emt
00:01:18]} 10. Bb3 {[%clk 00:08:34]} {[%emt 00:00:34]} Nxb3 {[%clk 00:10:08]}
{[%emt 00:00:31]} 11. axb3 {[%clk 00:08:18]} {[%emt 00:00:18]} d5 {[%clk
00:09:44]} {[%emt 00:00:27]} 12. O-O {[%clk 00:07:05]} {[%emt 00:01:15]} Bxc3
{[%clk 00:09:10]} {[%emt 00:00:38]} 13. Qxc3 {[%clk 00:06:49]} {[%emt
00:00:19]} Qxc3 {[%clk 00:09:07]} {[%emt 00:00:06]} 14. bxc3 {[%clk 00:06:48]}
{[%emt 00:00:03]} Nxe4 {[%clk 00:09:01]} {[%emt 00:00:11]} 15. Bd4 {[%clk
00:06:23]} {[%emt 00:00:27]} f6 {[%clk 00:08:50]} {[%emt 00:00:15]} 16. c4
{[%clk 00:05:49]} {[%emt 00:00:37]} e5 {[%clk 00:08:16]} {[%emt 00:00:38]} 17.
Bb2 {[%clk 00:05:41]} {[%emt 00:00:10]} d4 {[%clk 00:07:47]} {[%emt 00:00:34]}
18. Rfe1 {[%clk 00:05:31]} {[%emt 00:00:11]} Nd6 {[%clk 00:05:10]} {[%emt
00:02:41]} 19. Bxd4 {[%clk 00:05:11]} {[%emt 00:00:23]} Kf7 {[%emt 00:01:01]}
20. Bc5 {[%emt 00:00:23]} Nf5 {[%clk 00:04:02]} {[%emt 00:00:21]} 21. Rad1 Be6
{[%emt 00:00:53]} 22. h3 {[%emt 00:00:10]} Rhd8 {[%emt 00:00:27]} 23. g4 {[%emt
00:00:24]} Ne7 {[%emt 00:00:26]} 24. Kg2 {[%emt 00:00:13]} Nc6 {[%emt
00:00:46]} 25. Bb6 {[%emt 00:00:32]} Rxd1 {[%clk 00:03:02]} {[%emt 00:00:02]}
26. Rxd1 {[%emt 00:00:26]} h6 {[%emt 00:00:17]} 27. Kg3 {[%emt 00:00:26]} Re8
{[%emt 00:00:11]} 28. h4 {[%emt 00:00:13]} Re7 {[%emt 00:00:14]} 29. g5 {[%emt
00:00:14]} hxg5 {[%clk 00:01:57]} {[%emt 00:00:02]} 30. hxg5 {[%emt 00:00:19]}
Rd7 {[%emt 00:00:10]} 31. Rxd7+ {[%clk 00:01:34]} {[%emt 00:00:03]} Bxd7 {[%emt
00:00:10]} 32. gxf6 {[%clk 00:01:27]} {[%emt 00:00:03]} gxf6 {[%clk 00:01:04]}
{[%emt 00:00:08]} 33. Nd2 f5 {[%clk 00:00:46]} {[%emt 00:01:11]} 34. Nf3 Kf6
{[%emt 00:00:44]} 35. c3 {[%emt 00:00:12]} e4 {[%emt 00:00:05]} 36. Nd2 {[%emt
00:00:06]} Ne5 {[%clk 00:00:33]} {[%emt 00:00:11]} 37. Bd4 Ke6 {[%emt
00:00:13]} 38. Kf4 {[%clk 00:00:22]} {[%emt 00:00:03]} Nd3+ {[%clk 00:00:34]}
{[%emt 00:00:02]} 39. Ke3 {[%emt 00:00:27]} Ne5 {[%clk 00:00:14]} {[%emt
00:00:01]} 40. Kf4 {[%emt 00:00:11]} Nc6 {[%clk 00:00:13]} 41. b4 {[%emt
00:00:07]} a5 {[%clk 00:00:12]} {[%emt 00:00:01]} 42. b5 {[%emt 00:00:06]} Ne7
{[%emt 00:00:02]} 43. Bc5 {[%clk 00:00:17]} {[%emt 00:00:01]} Ng6+ {[%clk
00:00:10]} {[%emt 00:00:02]} 44. Kg5 {[%clk 00:00:16]} {[%emt 00:00:03]} Ne5
{[%emt 00:00:04]} 45. f4 {[%clk 00:00:13]} {[%emt 00:00:04]} exf3 {[%emt
00:00:05]} 46. Ba3 {[%emt 00:00:07]} f2 {[%clk 00:00:07]} {[%emt 00:00:01]} 47.
Kf4 {[%emt 00:00:03]} Nd3+ {[%clk 00:00:09]} 48. Ke3 {[%emt 00:00:05]} Ne5
{[%clk 00:00:10]} 49. Kxf2 {[%clk 00:00:13]} {[%emt 00:00:02]} b6 {[%emt
00:00:03]} 50. c5 {[%clk 00:00:13]} {[%emt 00:00:02]} bxc5 {[%clk 00:00:13]}
{[%emt 00:00:02]} 51. Bxc5 {[%clk 00:00:14]} {[%emt 00:00:02]} Nd3+ {[%emt
00:00:05]} 52. Ke3 {[%emt 00:00:02]} Nxc5 53. b6 {[%clk 00:00:13]} {[%emt
00:00:01]} Nb7 {[%clk 00:00:16]} {[%emt 00:00:04]} 54. Nc4 Bb5 {[%emt
00:00:06]} 55. Kd4 {[%emt 00:00:02]} Bxc4 {[%clk 00:00:18]} 56. Kxc4 {[%emt
00:00:03]} Ke5 {[%emt 00:00:03]} 57. Kb5 {[%emt 00:00:06]} Kd6 {[%clk
00:00:12]} {[%emt 00:00:04]} 58. Ka6 {[%emt 00:00:05]} Kc6 {[%emt 00:00:01]} 59.
Ka7 {[%clk 00:00:15]} {[%emt 00:00:02]} f4 {[%clk 00:00:15]} {[%emt 00:00:04]}
60. c4 {[%clk 00:00:13]} {[%emt 00:00:02]} 0-1

[Event "Orlicka sachovnice 2023"]
[Site "Usti nad Orlici, Czech Republic"]
[Date "2023.05.06"]
[Round "3.2"]
[White "Sorf, Filip"]
[Black "Holasek, Tomas"]
[Result "0-1"]
[TimeControl "12 min + 3 s"]
[WhiteElo "1513"]
[BlackElo "1189"]

1. e4 {[%clk 00:12:04]} {[%emt 00:00:01]} e5 {[%clk 00:12:05]} {[%emt
00:00:01]} 2. Nf3 {[%clk 00:12:05]} {[%emt 00:00:01]} Nc6 {[%clk 00:12:06]}
{[%emt 00:00:01]} 3. Bc4 {[%clk 00:12:07]} {[%emt 00:00:02]} Nf6 {[%clk
00:11:58]} {[%emt 00:00:11]} 4. d3 {[%clk 00:12:08]} {[%emt 00:00:02]} Bc5
{[%clk 00:11:48]} {[%emt 00:00:13]} 5. Bg5 {[%clk 00:12:08]} {[%emt 00:00:04]}
d6 {[%clk 00:11:45]} {[%emt 00:00:06]} 6. Nc3 {[%clk 00:12:08]} {[%emt
00:00:02]} h6 {[%clk 00:11:43]} {[%emt 00:00:05]} 7. Bh4 {[%clk 00:12:02]}
{[%emt 00:00:09]} g5 {[%clk 00:11:20]} {[%emt 00:00:26]} 8. Bg3 {[%clk
00:11:59]} {[%emt 00:00:06]} Be6 {[%clk 00:11:02]} {[%emt 00:00:22]} 9. Bb3
{[%clk 00:11:58]} {[%emt 00:00:04]} Qe7 {[%clk 00:10:58]} {[%emt 00:00:07]} 10.
Qd2 {[%clk 00:11:49]} {[%emt 00:00:12]} O-O-O {[%clk 00:10:42]} {[%emt
00:00:18]} 11. O-O-O {[%clk 00:11:46]} {[%emt 00:00:07]} Bxb3 {[%clk 00:09:57]}
{[%emt 00:00:48]} 12. cxb3 {[%clk 00:11:32]} {[%emt 00:00:17]} Bb4 {[%clk
00:09:47]} {[%emt 00:00:13]} 13. Kb1 {[%clk 00:11:25]} {[%emt 00:00:10]} d5
{[%clk 00:08:24]} {[%emt 00:01:27]} 14. exd5 {[%clk 00:10:54]} {[%emt
00:00:34]} Nxd5 {[%clk 00:08:25]} {[%emt 00:00:02]} 15. Rhe1 {[%clk 00:10:22]}
{[%emt 00:00:34]} Nxc3+ {[%clk 00:07:29]} {[%emt 00:01:00]} 16. bxc3 {[%clk
00:10:22]} {[%emt 00:00:03]} Bd6 {[%clk 00:07:30]} {[%emt 00:00:01]} 17. h4
{[%clk 00:10:00]} {[%emt 00:00:24]} g4 {[%clk 00:07:16]} {[%emt 00:00:18]} 18.
Nh2 {[%clk 00:09:39]} {[%emt 00:00:23]} h5 {[%clk 00:07:02]} {[%emt 00:00:18]}
19. Qc2 {[%clk 00:09:12]} {[%emt 00:00:30]} f6 {[%clk 00:06:10]} {[%emt
00:00:55]} 20. d4 {[%clk 00:08:58]} {[%emt 00:00:17]} Qg7 {[%clk 00:05:01]}
{[%emt 00:01:12]} 21. Nf1 {[%clk 00:08:20]} {[%emt 00:00:41]} exd4 {[%clk
00:04:36]} {[%emt 00:00:29]} 22. cxd4 {[%clk 00:07:20]} {[%emt 00:01:03]} Bb4
{[%clk 00:04:05]} {[%emt 00:00:34]} 23. Re4 {[%clk 00:06:46]} {[%emt 00:00:37]}
f5 {[%clk 00:03:59]} {[%emt 00:00:09]} 24. Be5 {[%clk 00:06:09]} {[%emt
00:00:39]} Nxe5 {[%clk 00:03:53]} {[%emt 00:00:09]} 25. Rxe5 {[%clk 00:06:10]}
{[%emt 00:00:02]} f4 {[%clk 00:02:07]} {[%emt 00:01:49]} 26. Rde1 {[%clk
00:05:40]} {[%emt 00:00:33]} Bxe1 {[%clk 00:02:07]} {[%emt 00:00:03]} 27. Rxe1
{[%clk 00:05:32]} {[%emt 00:00:11]} Qxd4 {[%clk 00:01:53]} {[%emt 00:00:18]} 28.
Qf5+ {[%clk 00:04:30]} {[%emt 00:01:03]} Kb8 {[%clk 00:01:47]} {[%emt
00:00:10]} 29. Rc1 {[%clk 00:04:02]} {[%emt 00:00:31]} Qd3+ {[%clk 00:01:29]}
{[%emt 00:00:22]} 30. Qxd3 {[%clk 00:04:04]} {[%emt 00:00:01]} Rxd3 {[%clk
00:01:30]} {[%emt 00:00:01]} 31. Kc2 {[%clk 00:03:48]} {[%emt 00:00:20]} Rhd8
{[%clk 00:01:28]} {[%emt 00:00:05]} 32. a4 {[%clk 00:03:33]} {[%emt 00:00:17]}
b6 {[%clk 00:01:27]} {[%emt 00:00:04]} 33. g3 {[%clk 00:03:24]} {[%emt
00:00:12]} fxg3 {[%clk 00:01:22]} {[%emt 00:00:07]} 34. fxg3 {[%clk 00:03:26]}
{[%emt 00:00:01]} R8d6 {[%clk 00:01:14]} {[%emt 00:00:11]} 35. Kb2 {[%clk
00:03:23]} {[%emt 00:00:06]} Rd1 {[%clk 00:00:51]} {[%emt 00:00:26]} 36. Rxd1
{[%clk 00:03:09]} {[%emt 00:00:16]} Rxd1 {[%clk 00:00:53]} {[%emt 00:00:02]} 37.
Ne3 {[%clk 00:03:11]} {[%emt 00:00:01]} Rd3 {[%clk 00:00:47]} {[%emt 00:00:08]}
38. Nf5 {[%clk 00:03:07]} {[%emt 00:00:08]} Kb7 {[%clk 00:00:41]} {[%emt
00:00:08]} 39. Ng7 {[%clk 00:03:08]} {[%emt 00:00:03]} Rxg3 {[%clk 00:00:41]}
{[%emt 00:00:03]} 40. Nxh5 {[%clk 00:03:07]} {[%emt 00:00:03]} Rh3 {[%clk
00:00:37]} {[%emt 00:00:07]} 0-1

[Event "Orlicka sachovnice 2023"]
[Site "Usti nad Orlici, Czech Republic"]
[Date "2023.05.06"]
[Round "3.4"]
[White "Findejs, David"]
[Black "Horacek, Jan"]
[Result "1-0"]
[TimeControl "12 min + 3 s"]
[WhiteElo "1378"]
[BlackElo "1168"]

1. d4 {[%clk 00:12:05]} {[%emt 00:00:01]} d5 {[%clk 00:12:02]} {[%emt
00:00:04]} 2. c4 {[%clk 00:12:06]} {[%emt 00:00:03]} e6 {[%clk 00:12:03]}
{[%emt 00:00:02]} 3. Nf3 {[%clk 00:12:05]} {[%emt 00:00:03]} Nf6 {[%clk
00:12:02]} {[%emt 00:00:03]} 4. Nc3 {[%clk 00:12:05]} {[%emt 00:00:03]} Bb4
{[%clk 00:11:54]} {[%emt 00:00:12]} 5. Bg5 {[%clk 00:12:06]} {[%emt 00:00:02]}
Bd7 {[%clk 00:11:50]} {[%emt 00:00:08]} 6. Qb3 {[%clk 00:12:03]} {[%emt
00:00:05]} Bxc3+ {[%clk 00:11:47]} {[%emt 00:00:06]} 7. bxc3 {[%clk 00:12:01]}
{[%emt 00:00:05]} dxc4 {[%clk 00:11:47]} {[%emt 00:00:03]} 8. Qxb7 {[%clk
00:11:59]} {[%emt 00:00:05]} Bc6 {[%clk 00:11:33]} {[%emt 00:00:17]} 9. Qb2
{[%clk 00:11:45]} {[%emt 00:00:17]} Nbd7 {[%clk 00:11:22]} {[%emt 00:00:13]} 10.
Ne5 {[%clk 00:11:44]} {[%emt 00:00:05]} Rb8 {[%clk 00:11:14]} {[%emt 00:00:10]}
11. Qc2 {[%clk 00:11:36]} {[%emt 00:00:12]} Be4 {[%clk 00:10:59]} {[%emt
00:00:17]} 12. Qa4 {[%clk 00:10:20]} {[%emt 00:01:20]} Ra8 {[%clk 00:10:30]}
{[%emt 00:00:32]} 13. f3 {[%clk 00:09:52]} {[%emt 00:00:31]} Bd5 {[%clk
00:10:16]} {[%emt 00:00:15]} 14. e4 {[%clk 00:09:52]} {[%emt 00:00:04]} Bb7
{[%clk 00:10:14]} {[%emt 00:00:05]} 15. Bxc4 {[%clk 00:09:09]} {[%emt
00:00:47]} Qc8 {[%clk 00:09:57]} {[%emt 00:00:19]} 16. Bb5 {[%clk 00:08:19]}
{[%emt 00:00:54]} Nh5 {[%clk 00:09:07]} {[%emt 00:00:52]} 17. Bxd7+ {[%clk
00:08:17]} {[%emt 00:00:06]} Qxd7 {[%clk 00:09:03]} {[%emt 00:00:07]} 18. Qxd7+
{[%clk 00:08:17]} {[%emt 00:00:03]} Kf8 {[%clk 00:09:01]} {[%emt 00:00:03]} 19.
Qxf7# {[%clk 00:08:12]} {[%emt 00:00:04]} 1-0

[Event "Orlicka sachovnice 2023"]
[Site "Usti nad Orlici, Czech Republic"]
[Date "2023.05.06"]
[Round "3.5"]
[White "Vecerova, Hana"]
[Black "Jun, Rostislav"]
[Result "0-1"]
[TimeControl "12 min + 3 s"]
[WhiteElo "1171"]
[BlackElo "1370"]

1. e4 {[%clk 00:12:04]} {[%emt 00:00:01]} e5 {[%clk 00:12:05]} {[%emt
00:00:01]} 2. Nf3 {[%clk 00:12:06]} Nc6 {[%clk 00:12:08]} {[%emt 00:00:01]} 3.
Bc4 {[%clk 00:12:08]} f5 {[%clk 00:12:10]} 4. Nc3 {[%clk 00:12:06]} {[%emt
00:00:05]} fxe4 {[%clk 00:12:11]} {[%emt 00:00:02]} 5. Nxe4 {[%clk 00:12:08]}
d5 {[%clk 00:12:14]} {[%emt 00:00:02]} 6. Bd3 {[%clk 00:12:07]} {[%emt
00:00:03]} dxe4 {[%clk 00:12:08]} {[%emt 00:00:08]} 7. Bxe4 {[%clk 00:12:09]}
Nf6 {[%clk 00:12:10]} {[%emt 00:00:01]} 8. Bd3 {[%clk 00:12:04]} {[%emt
00:00:08]} e4 {[%clk 00:12:07]} {[%emt 00:00:06]} 9. Bxe4 {[%clk 00:11:48]}
{[%emt 00:00:19]} Nxe4 {[%clk 00:12:05]} {[%emt 00:00:06]} 10. Qe2 {[%clk
00:11:48]} {[%emt 00:00:03]} Qe7 {[%clk 00:12:07]} 11. O-O {[%clk 00:11:20]}
{[%emt 00:00:31]} Bg4 {[%clk 00:11:54]} {[%emt 00:00:16]} 12. c3 {[%clk
00:10:51]} {[%emt 00:00:32]} O-O-O {[%clk 00:11:42]} {[%emt 00:00:14]} 13. d3
{[%clk 00:10:29]} {[%emt 00:00:25]} Ng5 {[%clk 00:11:27]} {[%emt 00:00:17]} 14.
Qxe7 {[%clk 00:10:25]} {[%emt 00:00:09]} Bxe7 {[%clk 00:11:28]} {[%emt
00:00:01]} 15. Nxg5 {[%clk 00:10:24]} {[%emt 00:00:04]} Bxg5 {[%clk 00:11:21]}
{[%emt 00:00:10]} 16. Bxg5 {[%clk 00:10:26]} {[%emt 00:00:02]} Rxd3 {[%clk
00:11:23]} {[%emt 00:00:02]} 17. f3 {[%emt 00:01:06]} Bh5 {[%clk 00:11:10]}
{[%emt 00:00:14]} 18. Rad1 {[%clk 00:08:38]} {[%emt 00:00:47]} Rxd1 {[%clk
00:10:40]} {[%emt 00:00:34]} 19. Rxd1 {[%clk 00:08:40]} {[%emt 00:00:02]} Re8
{[%clk 00:10:41]} 20. Kf2 {[%clk 00:07:24]} {[%emt 00:01:20]} h6 {[%clk
00:09:29]} {[%emt 00:01:15]} 21. Bh4 {[%clk 00:07:17]} {[%emt 00:00:07]} g5
{[%clk 00:08:53]} {[%emt 00:00:43]} 22. Bg3 {[%clk 00:07:12]} {[%emt 00:00:05]}
Bg6 {[%clk 00:08:49]} {[%emt 00:00:08]} 23. h3 {[%clk 00:06:54]} {[%emt
00:00:21]} Ne5 {[%clk 00:08:43]} {[%emt 00:00:04]} 24. Rd5 {[%clk 00:06:08]}
{[%emt 00:00:54]} Nd3+ {[%clk 00:08:12]} {[%emt 00:00:33]} 25. Kg1 {[%clk
00:05:59]} {[%emt 00:00:08]} Nxb2 {[%clk 00:08:09]} {[%emt 00:00:11]} 26. Rc5
{[%clk 00:05:20]} {[%emt 00:00:37]} c6 {[%clk 00:07:38]} {[%emt 00:00:40]} 27.
Re5 {[%clk 00:04:30]} {[%emt 00:00:52]} Rxe5 {[%clk 00:06:53]} {[%emt
00:00:48]} 28. Bxe5 {[%clk 00:04:31]} {[%emt 00:00:02]} Kd7 {[%clk 00:06:08]}
{[%emt 00:00:49]} 29. Kh2 {[%clk 00:03:50]} {[%emt 00:00:43]} Ke6 {[%clk
00:06:04]} {[%emt 00:00:06]} 30. Bg7 {[%clk 00:03:47]} {[%emt 00:00:06]} h5
{[%emt 00:00:03]} 31. Bh6 {[%clk 00:02:40]} {[%emt 00:01:09]} Kf6 {[%clk
00:05:48]} {[%emt 00:00:19]} 32. f4 {[%clk 00:02:35]} {[%emt 00:00:10]} g4
{[%clk 00:04:26]} {[%emt 00:01:25]} 33. hxg4 {[%clk 00:02:15]} {[%emt
00:00:23]} hxg4 {[%clk 00:04:27]} {[%emt 00:00:02]} 34. Kg3 {[%clk 00:02:17]}
{[%emt 00:00:01]} Kf5 {[%clk 00:04:26]} {[%emt 00:00:02]} 35. Kf2 {[%clk
00:01:00]} {[%emt 00:01:22]} Nd1+ {[%clk 00:04:28]} {[%emt 00:00:02]} 36. Kg3
{[%clk 00:00:40]} {[%emt 00:00:22]} Nxc3 {[%clk 00:04:26]} {[%emt 00:00:06]} 37.
a3 {[%clk 00:00:30]} {[%emt 00:00:10]} Ne2+ {[%emt 00:01:02]} 0-1

[Event "Orlicka sachovnice 2023"]
[Site "Usti nad Orlici, Czech Republic"]
[Date "2023.05.06"]
[Round "3.6"]
[White "Smehlik, Vojtech"]
[Black "Knizner, Michal"]
[Result "1-0"]
[TimeControl "12 min + 3 s"]
[WhiteElo "1369"]
[BlackElo "1152"]

1. e4 {[%clk 00:12:04]} {[%emt 00:00:02]} e5 {[%clk 00:12:05]} 2. Nc3 {[%clk
00:12:06]} {[%emt 00:00:01]} Nf6 {[%clk 00:12:06]} {[%emt 00:00:03]} 3. f4
{[%clk 00:12:07]} {[%emt 00:00:02]} d5 {[%clk 00:12:08]} {[%emt 00:00:01]} 4.
fxe5 {[%clk 00:12:07]} Nxe4 {[%clk 00:12:10]} {[%emt 00:00:02]} 5. Qf3 {[%clk
00:12:08]} {[%emt 00:00:02]} Nxc3 {[%clk 00:11:51]} {[%emt 00:00:22]} 6. bxc3
{[%clk 00:12:10]} {[%emt 00:00:02]} d4 {[%clk 00:11:24]} {[%emt 00:00:30]} 7.
Bc4 {[%clk 00:11:46]} {[%emt 00:00:26]} Be6 {[%clk 00:10:52]} {[%emt 00:00:35]}
8. Bxe6 {[%clk 00:11:33]} {[%emt 00:00:16]} fxe6 {[%clk 00:10:51]} {[%emt
00:00:04]} 9. Qxb7 {[%clk 00:11:22]} {[%emt 00:00:15]} Qd5 {[%clk 00:08:57]}
{[%emt 00:01:57]} 10. Qxd5 {[%clk 00:11:22]} {[%emt 00:00:02]} exd5 {[%clk
00:08:59]} {[%emt 00:00:03]} 11. cxd4 {[%clk 00:11:24]} {[%emt 00:00:01]} c5
{[%clk 00:08:53]} {[%emt 00:00:08]} 12. c3 {[%clk 00:11:21]} {[%emt 00:00:07]}
Nc6 {[%clk 00:08:45]} {[%emt 00:00:11]} 13. Nf3 {[%clk 00:11:19]} {[%emt
00:00:04]} Be7 {[%clk 00:07:27]} {[%emt 00:01:22]} 14. Rb1 {[%clk 00:11:08]}
{[%emt 00:00:13]} O-O {[%clk 00:07:12]} {[%emt 00:00:18]} 15. dxc5 {[%clk
00:11:01]} {[%emt 00:00:10]} Bxc5 {[%clk 00:07:09]} {[%emt 00:00:06]} 16. d4
{[%emt 00:00:08]} Bb6 {[%clk 00:06:54]} {[%emt 00:00:13]} 17. Ba3 {[%clk
00:10:50]} {[%emt 00:00:15]} Rfc8 {[%clk 00:06:36]} {[%emt 00:00:21]} 18. O-O
{[%clk 00:10:40]} {[%emt 00:00:13]} Re8 {[%clk 00:06:03]} {[%emt 00:00:36]} 19.
Kh1 {[%clk 00:10:02]} {[%emt 00:00:41]} Ba5 {[%clk 00:05:52]} {[%emt 00:00:15]}
20. Rb5 {[%emt 00:01:17]} Bxc3 {[%clk 00:03:48]} {[%emt 00:01:25]} 21. Rc5
{[%clk 00:09:24]} {[%emt 00:00:08]} Bxd4 {[%clk 00:03:41]} {[%emt 00:00:10]} 22.
Rxc6 {[%clk 00:09:23]} {[%emt 00:00:04]} Bxe5 {[%clk 00:03:36]} {[%emt
00:00:08]} 23. Nxe5 {[%clk 00:09:24]} {[%emt 00:00:03]} Rxe5 {[%clk 00:03:34]}
{[%emt 00:00:04]} 24. Bb4 {[%clk 00:08:43]} {[%emt 00:00:44]} Rb8 {[%clk
00:03:18]} {[%emt 00:00:19]} 25. Rc7 {[%clk 00:08:21]} {[%emt 00:00:25]} h6
{[%clk 00:02:59]} {[%emt 00:00:21]} 26. a3 {[%clk 00:08:21]} {[%emt 00:00:03]}
Rbe8 {[%clk 00:02:42]} {[%emt 00:00:20]} 27. h3 {[%clk 00:08:13]} {[%emt
00:00:12]} d4 {[%clk 00:02:24]} {[%emt 00:00:20]} 28. Rd7 {[%clk 00:08:05]}
{[%emt 00:00:10]} Re4 {[%clk 00:02:04]} {[%emt 00:00:24]} 29. Bc5 {[%clk
00:07:57]} {[%emt 00:00:10]} Re3 {[%emt 00:00:51]} 30. Bxd4 {[%clk 00:07:37]}
{[%emt 00:00:11]} Rd3 {[%emt 00:00:37]} 31. Rxg7+ {[%clk 00:07:22]} {[%emt
00:00:07]} Kh8 {[%clk 00:01:01]} {[%emt 00:00:09]} 32. Rg4+ {[%clk 00:07:21]}
{[%emt 00:00:04]} Kh7 {[%emt 00:00:08]} 33. Rf7# {[%emt 00:00:05]} 1-0